bitfinex-derivatives/quotes_SOLF0:USTF0_20250202
["timestamp","ask_amount","ask_price","bid_price","bid_amount"]
[1738540499096,3.1257,202.23,202.11,161.85360102]
[1738540499293,0.03534335,202.2,202.18,4.9472]
[1738540499699,2.9507,202.33,202.15,41.64579559]
[1738540499896,4.9455,202.26,202.15,46.59359559]
[1738540500206,41.64579559,202.28,202.07,41.64579559]
[1738540500394,2.9507,202.33,202.07,41.64579559]
[1738540500395,41.64579559,202.32,202.08,0.90893872]
[1738540500702,41.64579559,202.44,202.23,41.64579559]
[1738540500894,41.64579559,202.4,202.23,41.64579559]
[1738540501203,0.03545042,202.36,202.18,47.76579559]
[1738540501701,2.9507,202.43,202.29,0.03610513]
[1738540502005,41.64579559,202.4,202.29,0.03610513]
[1738540502303,41.64579559,202.36,202.14,41.64579559]
[1738540502603,41.64579559,202.36,202.15,0.90858564]
[1738540502803,4.9449,202.28,202.16,4.9476]
[1738540503006,41.64579559,202.4,202.08,79.22673728]
[1738540503007,41.64579559,202.29,202.08,79.22673728]
[1738540503197,4.9468,202.2,202.09,4.9494]
[1738540503400,41.64579559,202.29,202.09,41.64579559]
[1738540503802,0.03497366,202.17,202.12,0.03382359]
[1738540504200,3.0862,202.23,202.13,41.64579559]
[1738540504400,3.0862,202.23,202.03,17.56331492]
[1738540504401,3.0862,202.23,202.12,0.03387989]
[1738540504603,0.03628705,202.17,202.12,0.03387989]
[1738540505101,4.9483,202.14,202.12,0.03387989]
[1738540505406,0.03628705,202.17,202.12,0.03387989]
[1738540505600,4.9497,202.09,201.99,46.59769559]
[1738540505802,41.64579559,202.16,201.96,79.22673728]
[1738540506008,41.64579559,202.12,201.96,79.22673728]
[1738540506205,3.0243,202.11,201.96,79.22673728]
[1738540506609,3.0862,202.1,201.96,79.22673728]
[1738540506807,0.03437307,202.06,202.01,0.03781384]
[1738540507207,4.9506,202.05,202.01,0.03781384]
[1738540507507,0.03437307,202.06,202.01,0.03781384]
[1738540508206,0.03437307,202.06,202.04,41.64579559]
[1738540508402,5.9805,202.21,202.04,41.64579559]
[1738540508607,5.9805,202.21,202.1,41.64579559]
[1738540508804,5.9805,202.21,202.06,41.64579559]
[1738540509507,2.9562,202.21,202.11,0.0360072]
[1738540509700,0.03721956,202.16,202.11,0.0360072]
[1738540509904,3.1687,202.2,202.11,0.0360072]
[1738540510299,0.03436695,202.16,202.11,41.68180279]
[1738540510802,0.03436695,202.16,202.11,0.0360072]
[1738540511603,4.9486,202.13,202.11,0.0360072]
[1738540511802,0.03436695,202.16,202.11,0.0360072]
[1738540513506,41.64579559,202.15,201.95,41.64579559]
[1738540513707,6.0154,202.14,201.95,41.64579559]
[1738540513907,4.9502,202.07,201.97,4.9524]
[1738540514107,6.0154,202.14,201.95,41.64579559]
[1738540514307,47.66119559,202.14,201.95,41.64579559]
[1738540514708,4.9503,202.06,202.02,0.03189866]
[1738540514908,0.03250215,202.07,202.02,0.03189866]
[1738540515710,8.1379,202.2,202.03,41.64579559]
[1738540516004,6.137,202.27,202.16,41.64579559]
[1738540516206,9.52361596,202.34,202.24,4.9458]
[1738540516207,10.8751,202.33,202.24,4.9458]
[1738540516409,10.8751,202.33,202.2,41.64579559]
[1738540516410,2.9482,202.33,202.2,41.64579559]
[1738540516710,2.9482,202.33,202.18,41.64579559]
[1738540516912,41.64579559,202.31,202.14,41.64579559]
[1738540517115,0.03240727,202.29,202.1,41.64579559]
[1738540517303,4.945,202.28,202.17,4.9474]
[1738540517504,2.9482,202.33,202.22,41.64579559]
[1738540517711,54.19717293,202.34,202.26,41.64579559]
[1738540518111,54.19717293,202.34,202.22,41.64579559]
[1738540518310,0.03284849,202.32,202.28,0.03225929]
[1738540521510,0.03284849,202.32,202.14,41.64579559]
[1738540521708,4.9464,202.22,202.11,4.9488]
[1738540521909,47.66259559,202.31,202.1,41.64579559]
[1738540522912,0.03656576,202.23,202.18,0.03356226]
[1738540523213,0.03656576,202.23,202.1,41.64579559]
[1738540523413,0.03656576,202.23,202.18,0.03252903]
[1738540523414,4.9468,202.2,202.18,0.03252903]
[1738540523610,41.64579559,202.23,202.02,41.64579559]
[1738540523913,41.68046336,202.19,201.91,0.0529]
[1738540524112,41.64579559,202.15,201.91,0.0529]
[1738540524410,41.64579559,202.15,201.92,41.64579559]
[1738540524609,41.64579559,202.15,201.96,4.9526]
[1738540524815,6.0728,202.18,201.96,41.64579559]
[1738540525008,0.03404291,202.06,202.01,0.03328979]
[1738540525514,41.64579559,202.15,201.96,41.64579559]
[1738540525724,4.951,202.03,202.01,0.03336328]
[1738540526016,0.03531334,202.06,202.01,0.03336328]
[1738540526207,4.951,202.03,201.92,46.59929559]
[1738540526405,4.951,202.03,202.0,0.03153662]
[1738540526610,41.64579559,202.07,201.84,41.64579559]
[1738540526911,6.0728,202.02,201.88,41.64579559]
[1738540527214,6.0728,202.02,201.84,41.64579559]
[1738540527821,6.0728,202.02,201.8,41.64579559]
[1738540528016,4.9536,201.93,201.91,0.03480347]
[1738540528313,0.03148881,201.95,201.91,0.03480347]
[1738540531415,41.64579559,202.16,201.92,41.64579559]
[1738540531618,8.9495,202.16,202.02,41.64579559]
[1738540531815,8.9495,202.16,202.12,4.9487]
[1738540532119,3.0384,202.29,202.14,41.64579559]
[1738540532511,3.0384,202.29,202.18,41.64579559]
[1738540532810,0.03132994,202.24,202.19,0.0349189]
[1738540534320,0.03132994,202.24,202.06,41.64579559]
[1738540534515,4.9475,202.18,202.06,41.64579559]
[1738540534819,6.4042,202.23,202.06,41.64579559]
[1738540535426,6.4042,202.23,202.1,41.64579559]
[1738540535727,6.4042,202.23,201.98,0.0639]
[1738540535728,9.704e-05,202.17,202.15,4.9478]
[1738540536122,3.0384,202.29,202.14,41.64579559]
[1738540536520,3.0384,202.29,202.1,41.64579559]
[1738540536719,3.0384,202.29,202.14,41.64579559]
[1738540537026,41.64579559,202.44,202.22,41.64579559]
[1738540537224,4.9439,202.32,202.22,46.59199559]
[1738540537422,0.03256154,202.24,202.18,41.64579559]
[1738540537825,41.64579559,202.36,202.25,0.0342693]
[1738540538125,41.64579559,202.36,202.18,41.64579559]
[1738540538321,0.03264988,202.33,202.18,41.64579559]
[1738540538519,0.03264988,202.33,202.28,0.03280114]
[1738540538725,6.2056,202.39,202.18,41.64579559]
[1738540538928,6.2056,202.39,202.23,41.64579559]
[1738540539128,0.0354666,202.33,202.28,0.03359597]
[1738540539325,6.2056,202.39,202.28,0.03359597]
[1738540539528,0.03741603,202.33,202.28,0.03359597]
[1738540542722,0.03741603,202.33,202.28,4.97819597]
[1738540542927,0.03741603,202.33,202.28,0.03359597]
[1738540543430,41.64579559,202.52,202.3,41.64579559]
[1738540543625,41.64579559,202.56,202.35,41.64579559]
[1738540543821,0.97922852,202.59,202.39,41.64579559]
[1738540544229,0.97922852,202.59,202.34,41.64579559]
[1738540544723,0.03658096,202.44,202.4,0.0324412]
[1738540545234,41.64579559,202.66,202.42,41.64579559]
[1738540545522,4.9368,202.61,202.52,4.9389]
[1738540545725,6.3924,202.65,202.55,41.64579559]
[1738540545925,20.28897011,202.67,202.59,41.64579559]
[1738540546122,20.28897011,202.67,202.63,41.64579559]
[1738540546530,17.09387639,202.67,202.63,41.64579559]
[1738540547025,13.89317639,202.67,202.63,41.64579559]
[1738540547731,3.0836,202.76,202.61,0.03398787]
[1738540547931,0.03775338,202.67,202.61,0.03398787]
[1738540548132,0.03775338,202.67,202.63,41.64579559]
[1738540548329,3.0836,202.76,202.63,41.64579559]
[1738540548529,3.0836,202.76,202.68,41.64579559]
[1738540549028,3.0836,202.76,202.62,41.64579559]
[1738540549229,4.9341,202.72,202.62,41.64579559]
[1738540549434,3.0836,202.76,202.62,41.64579559]
[1738540549629,0.03654393,202.71,202.67,0.0340695]
[1738540550928,4.393e-05,202.71,202.67,0.0340695]
[1738540551133,54.10392029,202.8,202.7,83.29159118]
[1738540551327,118.91525931,202.84,202.82,4.9315]
[1738540551529,42.47039316,202.84,202.83,41.64579559]
[1738540551726,270.5196014,202.95,202.83,41.64579559]
[1738540551727,12.4975,202.98,202.83,41.64579559]
[1738540552032,12.4975,202.98,202.71,6.06]
[1738540552033,54.14329559,202.98,202.79,41.64579559]
[1738540552231,54.14329559,202.98,202.75,41.64579559]
[1738540552433,4.93,202.89,202.88,1.475e-05]
[1738540552833,41.64579559,202.94,202.75,41.64579559]
[1738540553035,4.9307,202.86,202.75,46.57899559]
[1738540553232,41.64579559,202.94,202.75,41.64579559]
[1738540553432,41.64579559,202.94,202.71,41.64579559]
[1738540553632,4.9314,202.83,202.82,0.03460843]
[1738540554035,0.03452125,202.87,202.82,0.03460843]
[1738540554734,4.931,202.85,202.82,0.03460843]
[1738540554935,0.03452125,202.87,202.82,0.03460843]
[1738540555126,0.03452125,202.87,202.83,41.64579559]
[1738540555928,0.03452125,202.87,202.85,4.9308]
[1738540556126,12.4975,202.98,202.83,41.64579559]
[1738540556127,9.3534,202.98,202.84,41.64579559]
[1738540556333,9.3534,202.98,202.89,41.64579559]
[1738540557339,0.03170675,202.96,202.91,0.03595177]
[1738540558535,0.03170675,202.96,202.75,41.64579559]
[1738540558741,4.9324,202.79,202.75,41.64579559]
[1738540558935,41.64579559,202.9,202.71,41.64579559]
[1738540559130,2.9651,202.89,202.71,41.64579559]
[1738540559340,2.9651,202.89,202.67,41.64579559]
[1738540560039,0.03787587,202.8,202.76,0.03139208]
[1738540560639,2.9651,202.89,202.67,41.64579559]
[1738540560836,0.03363399,202.8,202.76,0.03490513]
[1738540561231,2.9651,202.89,202.75,41.64579559]
[1738540561434,4.9315,202.83,202.75,41.64579559]
[1738540561732,41.64579559,203.06,202.79,41.64579559]
[1738540561936,3.1962,202.96,202.79,41.64579559]
[1738540562139,3.1962,202.96,202.73,41.64579559]
[1738540562337,3.1962,202.96,202.78,41.64579559]
[1738540562940,4.9297,202.9,202.8,4.932]
[1738540563243,0.03490245,202.89,202.85,0.03329577]
[1738540563440,0.03490245,202.89,202.74,41.64579559]
[1738540563638,2.9736,202.93,202.74,41.64579559]
[1738540563941,41.64579559,202.9,202.7,41.64579559]
[1738540564340,41.64579559,202.85,202.62,41.64579559]
[1738540564640,5.8572,202.84,202.62,41.64579559]
[1738540564834,0.03179711,202.76,202.71,0.0313115]
[1738540565241,5.8572,202.84,202.66,41.64579559]
[1738540565435,4.9315,202.83,202.74,4.9336]
[1738540565635,0.03155613,202.76,202.74,41.64579559]
[1738540565842,2.9736,202.93,202.74,41.64579559]
[1738540566042,4.93,202.89,202.82,4.9316]
[1738540566242,2.9736,202.93,202.8,41.64579559]
[1738540566943,8.9793,202.99,202.8,41.64579559]
[1738540567149,0.03396898,202.89,202.84,0.03660469]
[1738540567543,8.9793,202.99,202.84,41.64579559]
[1738540567741,4.04e-06,202.89,202.88,41.64579559]
[1738540568046,3.0839,203.09,202.88,41.64579559]
[1738540568549,3.0839,203.09,202.94,4.9287]
[1738540568944,3.0839,203.09,202.95,4.9285]
[1738540569141,0.03206678,203.04,202.99,0.03676078]
[1738540569445,3.0839,203.09,202.99,0.03676078]
[1738540569751,0.03642112,203.04,202.85,2.9668]
[1738540570251,4.9266,203.03,202.92,4.9292]
[1738540570447,41.64579559,203.06,202.88,41.64579559]
[1738540570849,4.9283,202.96,202.86,4.9305]
[1738540571143,4.9283,202.96,202.76,81.15588044]
[1738540571144,0.03430541,202.99,202.95,4.806e-05]
[1738540571350,4.931,202.85,202.76,122.80167603]
[1738540571550,41.64579559,202.94,202.76,81.15588044]
[1738540571845,4.929,202.93,202.83,4.9314]
[1738540572052,41.64579559,202.98,202.76,81.15588044]
[1738540572246,41.64579559,202.94,202.76,81.15588044]
[1738540572454,4.9309,202.86,202.85,0.03169337]
[1738540572951,0.03788119,202.89,202.73,139.28579559]
[1738540573351,41.64579559,202.94,202.73,139.28579559]
[1738540573550,4.9302,202.89,202.79,4.9322]
[1738540573750,4.9302,202.89,202.73,139.28579559]
[1738540573950,41.64579559,202.94,202.73,139.28579559]
[1738540573951,41.64579559,202.94,202.77,41.64579559]
[1738540574153,0.03170833,202.86,202.82,0.03576195]
[1738540574955,0.03170833,202.86,202.7,81.15588044]
[1738540575256,41.64579559,202.83,202.7,81.15588044]
[1738540575653,9.349,202.86,202.69,122.80167603]
[1738540575951,9.349,202.86,202.73,41.64579559]
[1738540576156,9.349,202.86,202.75,0.0346478]
[1738540576450,0.03277522,202.8,202.75,0.0346478]
[1738540576957,0.03277522,202.8,202.69,81.15588044]
[1738540577253,0.03277522,202.8,202.69,122.80167603]
[1738540577452,0.03277522,202.8,202.73,41.64579559]
[1738540577954,4.96497522,202.8,202.72,4.934]
[1738540578154,0.03277522,202.8,202.72,4.934]
[1738540578453,0.03277522,202.8,202.74,0.03213928]
[1738540578856,41.64579559,202.99,202.77,41.64579559]
[1738540579156,50.96959559,202.99,202.77,41.64579559]
[1738540579355,0.03326833,202.9,202.77,41.64579559]
[1738540579650,4.96306833,202.9,202.86,0.03736515]
[1738540579854,50.96959559,202.99,202.86,0.03736515]
[1738540580152,9.3238,202.99,202.8,41.64579559]
[1738540580356,9.3238,202.99,202.84,41.64579559]
[1738540580658,0.03300025,202.95,202.9,0.03225439]
[1738540581458,4.96170025,202.95,202.9,0.03225439]
[1738540582154,0.03300025,202.95,202.9,0.03225439]
[1738540582557,0.03300025,202.95,202.9,4.96185439]
[1738540583155,0.03300025,202.95,202.92,4.9292]
[1738540583459,0.03300025,202.95,202.94,81.15588044]
[1738540583650,41.64579559,203.11,202.94,81.15588044]
[1738540583856,3.0261,203.1,202.94,81.15588044]
[1738540584257,3.0261,203.1,202.94,194.53260658]
[1738540584458,3.0261,203.1,202.94,189.60390658]
[1738540584962,0.03509849,203.04,203.0,0.03589543]
[1738540585856,41.68089408,203.04,203.0,81.58147378]
[1738540586056,41.68089408,203.04,202.96,159.4574509]
[1738540586361,41.64579559,202.97,202.79,3.0525]
[1738540586555,41.64579559,202.95,202.79,2.9317]
[1738540586757,41.64579559,202.99,202.8,0.1208]
[1738540586956,4.9283,202.96,202.86,4.9305]
[1738540587160,0.03231595,202.92,202.87,0.03532917]
[1738540587657,41.64579559,202.91,202.87,0.03771701]
[1738540588055,4.9302,202.88,202.87,0.03771701]
[1738540588359,0.03206123,202.92,202.87,0.03771701]
[1738540589198,0.03206123,202.92,202.89,4.9299]
[1738540589394,0.03206123,202.92,202.87,0.03771701]
[1738540589789,4.9299,202.9,202.87,0.03771701]
[1738540589979,41.67785682,202.92,202.87,0.03771701]
[1738540590325,41.64579559,202.88,202.74,5.8158]
[1738540590485,41.64579559,202.88,202.63,11.8829]
[1738540590789,41.64579559,202.88,202.66,41.64579559]
[1738540590984,41.64579559,202.84,202.66,41.64579559]
[1738540591185,380.03185767,202.91,202.63,11.8829]
[1738540591186,41.64579559,202.8,202.63,11.8829]
[1738540591394,0.03668898,202.76,202.71,0.03115102]
[1738540592080,380.03185767,202.91,202.74,41.64579559]
[1738540592583,61.9597592,202.75,202.74,41.64579559]
[1738540592773,42.7001592,202.75,202.74,41.60073462]
[1738540592975,318.07209847,202.91,202.7,41.64579559]
[1738540593169,7.452e-05,202.77,202.75,4.9334]
[1738540593470,318.07209847,202.91,202.74,41.64579559]
[1738540593664,318.07209847,202.91,202.78,41.64579559]
[1738540593861,149.45735252,202.79,202.78,41.64579559]
[1738540594067,318.07209847,202.91,202.78,41.64579559]
[1738540594269,318.07209847,202.91,202.84,41.64579559]
[1738540594674,298.83454492,202.91,202.9,4.9297]
[1738540594963,183.04398663,202.91,202.9,4.9297]
[1738540595166,86.39800705,202.91,202.9,4.9297]
[1738540595371,74.57570705,202.91,202.9,4.9297]
[1738540596168,47.83920705,202.91,202.9,4.9297]
[1738540596366,0.03713521,202.93,202.9,106.3482791]
[1738540596666,3.521e-05,202.93,202.92,41.64579559]
[1738540596869,2.9848,203.1,202.92,41.64579559]
[1738540597170,4.926,203.06,202.97,41.64579559]
[1738540598167,0.03661789,203.04,202.99,0.03152519]
[1738540598368,0.03661789,203.04,203.01,41.64579559]
[1738540598570,3.0721,203.2,203.01,41.64579559]
[1738540598769,12.572,203.2,203.05,41.64579559]
[1738540598971,12.572,203.2,203.09,41.64579559]
[1738540599172,5.14007188,203.41,203.13,41.64579559]
[1738540599173,0.0318583,203.15,203.13,41.64579559]
[1738540599466,4.9216,203.24,203.13,41.64579559]
[1738540599674,4.9208,203.27,203.17,41.64579559]
[1738540599973,9.4999,203.33,203.17,41.64579559]
[1738540600271,9.4999,203.33,203.07,97.58]
[1738540600272,9.4999,203.33,203.21,41.64579559]
[1738540600470,0.0369822,203.27,203.23,0.03473931]
[1738540600773,3.0721,203.38,203.21,41.64579559]
[1738540600970,4.9198,203.32,203.23,0.0369388]
[1738540601174,0.03421488,203.27,203.23,0.0369388]
[1738540601366,3.0721,203.38,203.21,41.64579559]
[1738540601565,0.03768492,203.27,203.23,0.03300612]
[1738540601776,9.0528,203.41,203.25,41.64579559]
[1738540602072,0.03557926,203.27,203.23,0.03235603]
[1738540602474,41.64579559,203.4,203.19,81.00430223]
[1738540602668,0.03584828,203.27,203.23,0.03309062]
[1738540602872,41.64579559,203.36,203.19,81.00430223]
[1738540603174,0.03275243,203.27,203.23,0.0376075]
[1738540603470,41.64579559,203.28,203.19,73.56240223]
[1738540603674,41.64579559,203.2,203.16,124.53407262]
[1738540603872,41.64579559,203.24,203.02,168.75896297]
[1738540604175,41.64579559,203.2,203.02,168.75896297]
[1738540604875,4.9247,203.11,203.09,0.03477203]
[1738540605077,0.03562185,203.13,203.09,0.03477203]
[1738540605278,9.8328,203.45,203.09,41.68056762]
[1738540605478,3.1243,203.38,203.17,41.64579559]
[1738540605871,3.1243,203.38,203.06,41.64579559]
[1738540605872,3.1243,203.38,203.13,41.64579559]
[1738540606076,3.1243,203.38,203.17,41.64579559]
[1738540606272,3.1243,203.38,203.06,41.64579559]
[1738540606273,3.1243,203.38,203.21,41.64579559]
[1738540606475,0.03582056,203.29,203.24,0.03248264]
[1738540606873,0.03582056,203.29,203.21,41.64579559]
[1738540607070,0.03582056,203.29,203.24,0.03126156]
[1738540607575,4.9211,203.26,203.24,0.03126156]
[1738540608273,4.9211,203.26,203.24,6.156e-05]
[1738540611477,83.29159118,203.28,203.02,41.64579559]
[1738540611677,41.64579559,203.19,203.01,2.95]
[1738540611873,41.64579559,203.19,203.02,41.64579559]
[1738540612280,41.64579559,203.27,203.06,41.64579559]
[1738540612580,41.64579559,203.31,203.11,41.64579559]
[1738540612778,0.03180493,203.19,203.14,0.03381108]
[1738540613083,41.64579559,203.27,203.07,41.64579559]
[1738540613280,4.9235,203.16,203.14,0.03604265]
[1738540613680,3.1348,203.22,203.03,41.64579559]
[1738540613881,0.03273616,203.17,203.13,0.03109918]
[1738540614486,44.78059559,203.35,203.15,41.64579559]
[1738540614679,3.1348,203.35,203.19,41.64579559]
[1738540614884,4.9194,203.33,203.23,46.56729559]
[1738540615084,8.7454,203.45,203.27,41.64579559]
[1738540615285,41.64579559,203.47,203.28,9.3886]
[1738540615681,0.03664407,203.4,203.35,0.03478764]
[1738540616083,4.9162,203.46,203.36,4.9185]
[1738540616281,0.03116773,203.4,203.35,0.03317486]
[1738540616688,4.916,203.47,203.36,4.9184]
[1738540616891,0.03708107,203.4,203.35,2.94040351]
[1738540617188,4.9156,203.49,203.35,7.827]
[1738540617488,12.3178,203.54,203.35,2.94061646]
[1738540617687,12.3178,203.54,203.35,2.9084]
[1738540617888,12.3178,203.54,203.35,7.827]
[1738540618091,12.3178,203.54,203.35,2.9084]
[1738540618388,4.9164,203.46,203.42,0.03758485]
[1738540618887,0.03455412,203.47,203.42,0.03758485]
[1738540619088,4.9165,203.45,203.42,0.03758485]
[1738540619385,0.03455412,203.47,203.42,0.03758485]
[1738540621285,4.9163,203.46,203.42,0.03758485]
[1738540621486,0.03455412,203.47,203.42,0.03758485]
[1738540622388,4.9162,203.46,203.42,0.03758485]
[1738540622784,0.03455412,203.47,203.42,0.03758485]
[1738540623292,4.9167,203.44,203.42,0.03758485]
[1738540623891,4.9163,203.46,203.42,0.03758485]
[1738540624490,4.9169,203.43,203.42,0.03758485]
[1738540624690,0.03455412,203.47,203.42,0.03758485]
[1738540626196,4.9169,203.43,203.42,0.03758485]
[1738540627696,41.64579559,203.44,203.28,9.3886]
[1738540627989,41.64579559,203.4,203.28,9.3886]
[1738540628194,3.0908,203.46,203.28,9.3886]
[1738540628494,4.9186,203.36,203.28,9.3886]
[1738540628798,0.0358658,203.34,203.3,0.03630428]
[1738540628987,41.64579559,203.4,203.22,2.9095]
[1738540629190,0.0323388,203.34,203.3,0.03739564]
[1738540629394,3.0908,203.46,203.33,41.64579559]
[1738540630094,4.9173,203.42,203.33,41.64579559]
[1738540630290,3.1827,203.49,203.33,41.64579559]
[1738540630591,3.1827,203.49,203.3,6.121]
[1738540630592,0.03248885,203.43,203.39,0.03562789]
[1738540630792,0.03248885,203.43,203.25,41.64579559]
[1738540630994,41.64579559,203.4,203.23,3.1673]
[1738540632090,0.03658687,203.34,203.29,0.03346991]
[1738540632695,3.1827,203.49,203.33,41.64579559]
[1738540633090,3.1827,203.49,203.34,2.9254]
[1738540633289,41.64579559,203.44,203.24,41.64579559]
[1738540633493,4.9215,203.24,203.19,8.8588]
[1738540633793,41.64579559,203.28,203.06,41.64579559]
[1738540633996,12.223,203.27,203.06,41.64579559]
[1738540634198,4.9226,203.2,203.19,0.03402182]
[1738540634499,41.64579559,203.39,203.16,41.64579559]
[1738540634698,41.64579559,203.29,203.17,0.03121822]
[1738540634905,41.64579559,203.29,203.09,9.1312]
[1738540635598,41.64579559,203.37,203.15,41.64579559]
[1738540635802,41.64579559,203.37,203.19,46.56839559]
[1738540636196,41.64579559,203.37,203.19,41.64579559]
[1738540636395,4.9195,203.33,203.19,41.64579559]
[1738540636599,41.64579559,203.37,203.19,41.64579559]
[1738540636899,41.64579559,203.29,203.11,41.64579559]
[1738540637198,0.0355417,203.3,203.15,41.64579559]
[1738540637498,4.9188,203.36,203.22,4.9219]
[1738540637698,12.1557,203.38,203.19,41.64579559]
[1738540638298,26.9957,203.38,203.15,41.64579559]
[1738540638594,41.64579559,203.28,203.26,7.379e-05]
[1738540638799,2.9483,203.27,203.09,9.1312]
[1738540639702,41.64579559,203.24,203.09,9.1312]
[1738540639994,41.6833295,203.2,203.02,41.64579559]
[1738540640502,9.1299,203.23,203.02,41.64579559]
[1738540640794,4.9238,203.15,203.01,97.38]
[1738540640999,9.1299,203.23,203.03,41.64579559]
[1738540641193,0.03773826,203.1,203.03,41.64579559]
[1738540641398,0.03773826,203.1,203.06,0.03625268]
[1738540641600,41.64579559,203.17,203.01,97.38]
[1738540641796,41.64579559,203.09,203.04,0.03315808]
[1738540642303,0.0319643,203.1,202.94,41.64579559]
[1738540642502,4.9253,203.09,203.04,0.03641968]
[1738540642700,41.64579559,203.13,202.94,41.64579559]
[1738540642897,4.9269,203.02,202.91,1.43230439]
[1738540643101,41.64579559,203.05,202.91,1.43230439]
[1738540643302,3.1842,203.04,202.78,6.3222]
[1738540643497,4.9291,202.93,202.8,46.57779559]
[1738540643803,4.9291,202.93,202.8,41.64579559]
[1738540644105,4.9287,202.95,202.82,4.9316]
[1738540644407,0.03114097,202.89,202.84,0.03502673]
[1738540644801,0.03114097,202.89,202.78,12.3719]
[1738540644802,41.64579559,202.93,202.78,2.9472]
[1738540645006,41.64579559,202.88,202.84,0.03425468]
[1738540645201,41.64579559,202.88,202.69,9.4247]
[1738540645402,5.96,202.91,202.69,9.4247]
[1738540645403,41.64579559,202.84,202.69,9.4247]
[1738540645598,41.64579559,202.84,202.69,3.1025]
[1738540646505,0.03748453,202.79,202.74,0.03132999]
[1738540647603,0.03748453,202.79,202.75,41.64579559]
[1738540647804,12.547,202.92,202.83,4.9313]
[1738540648006,3.1842,202.92,202.79,41.64579559]
[1738540648205,3.1842,202.92,202.76,6.1794]
[1738540648405,3.1842,202.92,202.79,41.64579559]
[1738540649198,0.03574515,202.88,202.83,0.03457687]
[1738540649606,0.03574515,202.88,202.8,2.9869]
[1738540649807,0.03574515,202.88,202.83,4.9312]
[1738540650007,0.03574515,202.88,202.83,4.96419204]
[1738540650204,0.03574515,202.88,202.83,0.03299204]
[1738540651902,41.64579559,202.85,202.67,41.64579559]
[1738540652099,2.9647,202.84,202.65,2.9581]
[1738540652507,2.9647,202.84,202.67,4.9352]
[1738540652707,2.9647,202.84,202.65,2.9581]
[1738540653307,0.03114827,202.79,202.74,0.03360757]
[1738540653607,0.03114827,202.79,202.59,41.64579559]
[1738540653815,41.64579559,202.77,202.55,41.64579559]
[1738540654025,2.9647,202.84,202.59,41.64579559]
[1738540654248,2.9647,202.84,202.67,41.64579559]
[1738540654733,41.64579559,203.06,202.75,41.64579559]
[1738540654935,41.64579559,202.97,202.79,41.64579559]
[1738540655321,0.03785372,202.86,202.79,41.64579559]
[1738540655526,0.03785372,202.86,202.76,8.8506]
[1738540655731,0.03785372,202.86,202.81,4.9319]
[1738540655932,41.64579559,202.97,202.76,8.8506]
[1738540656234,0.03699249,202.86,202.85,41.64579559]
[1738540656437,6.2065,203.0,202.85,41.64579559]
[1738540656636,6.7100644,203.06,202.89,41.64579559]
[1738540657329,6.7100644,203.06,202.93,4.9289]
[1738540657524,48.35585999,203.06,202.84,41.64579559]
[1738540657723,0.0359121,203.0,202.95,0.03327459]
[1738540658214,4.9279,202.98,202.83,41.64579559]
[1738540658415,0.0359121,203.0,202.87,41.64579559]
[1738540658617,41.64579559,203.1,202.91,41.64579559]
[1738540659413,0.0313179,203.03,202.98,0.03148755]
[1738540661115,4.9272,203.01,202.98,0.03148755]
[1738540661311,0.0313179,203.03,202.98,0.03148755]
[1738540661516,0.0313179,203.03,202.87,41.64579559]
[1738540661817,0.0313179,203.03,202.91,41.64579559]
[1738540662023,3.071,203.13,202.95,41.64579559]
[1738540662219,3.071,203.13,203.0,41.64579559]
[1738540662408,3.071,203.13,202.95,41.64579559]
[1738540662409,3.071,203.13,202.96,12.3205]
[1738540662923,0.0353665,203.06,203.02,4.95942298]
[1738540663211,0.0353665,203.06,203.02,0.03272298]
[1738540663915,0.0353665,203.06,203.03,41.64579559]
[1738540664319,0.0353665,203.06,203.04,4.9262]
[1738540664615,3.0794,203.17,203.03,41.64579559]
[1738540664917,4.9228,203.19,203.13,4.9241]
[1738540665217,6.7100644,203.23,202.96,12.3205]
[1738540665218,6.7100644,203.23,203.11,41.64579559]
[1738540666011,0.03381401,203.19,203.15,0.03580051]
[1738540667120,4.9234,203.16,203.15,0.03580051]
[1738540668311,4.9231,203.18,203.15,0.03580051]
[1738540668519,0.03381401,203.19,203.15,0.03580051]
[1738540668923,4.9232,203.17,203.15,0.03580051]
[1738540669320,4.9232,203.17,203.15,5.1e-07]
[1738540670219,4.9232,203.17,202.97,4.9279]
[1738540670220,4.926,203.06,202.97,4.9279]
[1738540670915,4.926,203.06,202.96,8.973]
[1738540670916,4.9255,203.08,202.96,8.973]
[1738540671118,41.64579559,203.12,202.96,8.973]
[1738540671317,0.03209668,203.04,203.0,0.03190396]
[1738540671722,4.9268,203.02,203.0,3.96e-06]
[1738540672022,0.03209668,203.04,203.0,3.96e-06]